bitfinex-derivatives/quotes_SOLF0:USTF0_20241103
["timestamp","ask_amount","ask_price","bid_price","bid_amount"]
[1730637026574,2.82,163.91,163.78,38.19646539]
[1730637028181,2.82,163.91,163.78,2.82]
[1730637031475,2.82,163.9,163.78,2.82]
[1730637036983,2.82,163.9,163.79,1.3302]
[1730637048279,22.18535853,163.89,163.79,1.3302]
[1730637048485,3.81535853,163.88,163.79,1.3302]
[1730637048791,3.81535853,163.87,163.79,1.3302]
[1730637048988,6.63535853,163.86,163.79,1.3302]
[1730637049196,3.81535853,163.85,163.79,1.3302]
[1730637049395,2.82,163.86,163.79,1.3302]
[1730637050196,3.81547373,163.85,163.79,1.3302]
[1730637050496,2.82,163.86,163.79,1.3302]
[1730637050682,3.81532891,163.85,163.79,1.3302]
[1730637050885,2.82,163.86,163.79,1.3302]
[1730637051188,3.8153399,163.85,163.79,1.3302]
[1730637051389,2.82,163.86,163.79,1.3302]
[1730637051694,22.18521759,163.85,163.73,2.82]
[1730637051998,3.81521759,163.84,163.73,2.82]
[1730637052188,3.81521759,163.83,163.73,2.82]
[1730637052383,2.82,163.82,163.73,2.82]
[1730637052692,2.82,163.82,163.72,3.02342839]
[1730637052897,2.82,163.82,163.72,2.82]
[1730637053098,2.82,163.82,163.73,3.03979818]
[1730637053395,3.81348224,163.81,163.72,2.82]
[1730637053692,2.82,163.82,163.73,2.7255]
[1730637053990,2.82,163.82,163.73,7.14841035]
[1730637053991,3.813861,163.81,163.73,7.14841035]
[1730637054184,2.82,163.82,163.73,7.14841035]
[1730637054388,3.81260344,163.81,163.73,4.0735]
[1730637054591,2.82,163.82,163.73,4.0735]
[1730637054896,3.81238,163.81,163.73,4.0735]
[1730637055097,2.82,163.82,163.73,4.0735]
[1730637055293,3.81142654,163.81,163.73,4.0735]
[1730637055595,2.82,163.82,163.73,4.0735]
[1730637055791,3.81144797,163.81,163.73,4.0735]
[1730637056002,2.82,163.82,163.73,4.0735]
[1730637056206,3.81130602,163.81,163.73,4.0735]
[1730637056389,2.82,163.82,163.73,4.0735]
[1730637056902,3.81061889,163.81,163.73,4.0735]
[1730637057194,4.0362,163.85,163.73,4.0735]
[1730637057397,59.77948451,163.89,163.73,4.0735]
[1730637057398,6.63039551,163.84,163.73,4.0735]
[1730637057699,3.81039551,163.83,163.73,4.0735]
[1730637057885,2.82,163.86,163.73,4.0735]
[1730637058088,3.81087155,163.85,163.73,4.0735]
[1730637058306,3.81087155,163.84,163.73,4.0735]
[1730637058602,59.77948451,163.89,163.73,4.0735]
[1730637058603,62.59948451,163.89,163.73,4.0735]
[1730637058784,3.81054497,163.88,163.73,4.0735]
[1730637058989,3.81054497,163.87,163.73,4.0735]
[1730637059190,3.81054497,163.86,163.73,4.0735]
[1730637059391,3.81054497,163.85,163.73,4.0735]
[1730637059700,3.81054497,163.84,163.73,4.0735]
[1730637059895,62.59948451,163.89,163.73,4.0735]
[1730637060195,3.8102133,163.88,163.73,4.0735]
[1730637060402,3.8102133,163.87,163.73,4.0735]
[1730637060593,3.8102133,163.86,163.73,4.0735]
[1730637060794,3.8102133,163.88,163.73,4.0735]
[1730637060994,3.8102133,163.87,163.73,4.0735]
[1730637061194,3.8102133,163.86,163.73,4.0735]
[1730637061389,3.8102133,163.85,163.73,4.0735]
[1730637061594,62.59948451,163.89,163.73,4.0735]
[1730637061595,3.8102133,163.84,163.73,4.0735]
[1730637061798,1.3498,163.88,163.73,4.0735]
[1730637061999,3.80956281,163.87,163.73,4.0735]
[1730637062204,3.80956281,163.86,163.73,4.0735]
[1730637062516,3.80932089,163.85,163.73,4.0735]
[1730637062808,2.6713,163.88,163.73,4.0735]
[1730637062989,22.3697,163.88,163.73,4.0735]
[1730637063810,3.80935217,163.84,163.73,4.0735]
[1730637064205,2.82,163.85,163.74,2.82]
[1730637064409,3.80870459,163.84,163.74,2.82]
[1730637066104,3.80674704,163.83,163.74,2.82]
[1730637066303,2.82,163.85,163.74,2.82]
[1730637066509,3.80685602,163.84,163.74,2.82]
[1730637066693,2.82,163.85,163.74,2.82]
[1730637066894,3.80685361,163.84,163.74,2.82]
[1730637067103,3.80685361,163.83,163.74,2.82]
[1730637067305,2.82,163.85,163.74,2.82]
[1730637067607,3.80715546,163.84,163.74,2.82]
[1730637067803,2.82,163.85,163.74,2.82]
[1730637068007,3.80711622,163.84,163.74,2.82]
[1730637068314,2.82,163.87,163.74,2.82]
[1730637068503,3.80709298,163.86,163.74,2.82]
[1730637068702,3.80709298,163.85,163.74,2.82]
[1730637069009,3.80709298,163.84,163.74,2.82]
[1730637069311,2.82,163.87,163.74,2.82]
[1730637069504,3.80684294,163.86,163.74,2.82]
[1730637069703,3.80684294,163.85,163.74,2.82]
[1730637070013,3.80684294,163.84,163.74,2.82]
[1730637070201,3.80684294,163.86,163.74,2.82]
[1730637070401,3.80687095,163.85,163.74,2.82]
[1730637070604,3.80687095,163.84,163.73,4.0735]
[1730637070794,3.80687095,163.83,163.74,2.82]
[1730637070997,18.32,163.86,163.74,2.82]
[1730637071198,3.80682725,163.85,163.74,2.82]
[1730637071400,3.80682725,163.84,163.74,2.82]
[1730637071604,18.32,163.86,163.74,2.82]
[1730637071605,6.62682725,163.83,163.74,2.82]
[1730637071815,3.80682725,163.82,163.74,2.82]
[1730637072016,2.82,163.83,163.74,2.82]
[1730637072310,3.80616996,163.82,163.74,2.82]
[1730637072515,2.82,163.83,163.74,2.82]
[1730637072701,3.8060576,163.82,163.73,4.0735]
[1730637072901,3.8060576,163.81,163.73,4.0735]
[1730637073205,1.2691,163.82,163.73,2.7255]
[1730637073411,2.6597,163.82,163.73,2.7255]
[1730637073715,3.80602212,163.81,163.73,2.7255]
[1730637074017,2.6597,163.82,163.73,2.7255]
[1730637075011,3.80651969,163.81,163.73,2.7255]
[1730637075311,2.6597,163.82,163.73,2.7255]
[1730637075515,3.80673699,163.81,163.73,2.7255]
[1730637075716,2.6597,163.82,163.73,2.7255]
[1730637076014,1.2691,163.82,163.73,2.7255]
[1730637076213,3.80761036,163.81,163.73,4.0419]
[1730637076411,1.2691,163.82,163.73,4.0419]
[1730637076711,3.80747942,163.81,163.73,4.0419]
[1730637076910,1.2691,163.82,163.73,4.0419]
[1730637077409,3.80862627,163.81,163.73,4.0419]
[1730637077608,1.2691,163.82,163.73,4.0419]
[1730637077909,3.80850384,163.81,163.73,4.0419]
[1730637078114,3.80850384,163.8,163.73,4.0419]
[1730637078309,1.2691,163.82,163.73,4.0419]
[1730637078511,3.80952448,163.81,163.73,4.0419]
[1730637078711,3.80952448,163.8,163.73,4.0419]
[1730637079013,1.2691,163.82,163.73,4.0419]
[1730637079209,3.80950108,163.81,163.73,4.0419]
[1730637079418,3.80950108,163.8,163.73,4.0419]
[1730637079618,3.80950108,163.81,163.73,4.0419]
[1730637079917,3.81070223,163.8,163.73,4.0419]
[1730637080114,1.2691,163.82,163.73,4.0419]
[1730637080315,3.81203189,163.81,163.73,4.0419]
[1730637080509,3.81203189,163.8,163.73,4.0419]
[1730637080703,1.2691,163.82,163.73,4.0419]
[1730637080907,3.81184862,163.81,163.73,4.0419]
[1730637081308,1.2691,163.82,163.73,4.0419]
[1730637081616,3.81198353,163.81,163.73,4.0419]
[1730637081925,3.81198353,163.8,163.73,4.0419]
[1730637082216,3.81198353,163.79,163.73,4.0419]
[1730637082418,1.2691,163.82,163.73,4.0419]
[1730637082621,3.81213689,163.81,163.73,4.0419]
[1730637082922,3.81213689,163.8,163.73,4.0419]
[1730637083105,1.2691,163.82,163.73,4.0419]
[1730637083309,3.811029,163.81,163.73,4.0419]
[1730637083507,3.811029,163.8,163.73,4.0419]
[1730637083707,3.811029,163.79,163.73,4.0419]
[1730637083909,1.2691,163.82,163.73,4.0419]
[1730637084109,3.81081927,163.81,163.73,4.0419]
[1730637084307,3.81081927,163.8,163.73,4.0419]
[1730637084513,1.2691,163.82,163.73,4.0419]
[1730637084722,3.81061882,163.81,163.73,4.0419]
[1730637084936,3.81061882,163.8,163.73,4.0419]
[1730637085127,1.2691,163.82,163.73,4.0419]
[1730637085435,3.8106218,163.81,163.73,4.0419]
[1730637086330,3.8106218,163.8,163.73,4.0419]
[1730637086525,1.2691,163.82,163.73,4.0419]
[1730637086832,3.81032455,163.81,163.73,4.0419]
[1730637087020,3.81032455,163.8,163.73,4.0419]
[1730637087223,1.2691,163.82,163.73,4.0419]
[1730637087429,3.81026619,163.81,163.73,4.0419]
[1730637087632,3.81026619,163.8,163.73,4.0419]
[1730637087928,1.2691,163.82,163.73,4.0419]
[1730637088130,3.8102963,163.81,163.73,4.0419]
[1730637088421,3.8102963,163.8,163.73,4.0419]
[1730637088622,1.2691,163.82,163.73,4.0419]
[1730637088823,3.81028054,163.81,163.73,4.0419]
[1730637089023,3.81028054,163.8,163.73,4.0419]
[1730637089225,1.2691,163.82,163.73,4.0419]
[1730637089523,3.81027056,163.81,163.73,4.0419]
[1730637089724,3.81027056,163.8,163.73,4.0419]
[1730637089925,3.81026127,163.79,163.73,4.0419]
[1730637090126,1.2691,163.82,163.73,4.0419]
[1730637090327,3.81027788,163.81,163.73,4.0419]
[1730637090530,3.81027788,163.8,163.73,4.0419]
[1730637090732,1.2691,163.82,163.73,4.0419]
[1730637090933,3.81028798,163.81,163.73,4.0419]
[1730637091131,3.81028798,163.8,163.73,4.0419]
[1730637091432,1.2691,163.82,163.64,55.27151302]
[1730637091638,6.40397983,163.81,163.65,7.82334291]
[1730637091829,3.81027983,163.8,163.66,1.12224291]
[1730637092027,2.5937,163.81,163.66,1.12224291]
[1730637092028,3.80996106,163.79,163.66,1.12224291]
[1730637092234,3.80996106,163.78,163.66,1.12224291]
[1730637092533,3.80996106,163.77,163.66,1.12224291]
[1730637092741,2.5937,163.81,163.66,1.12224291]
[1730637092942,3.80940158,163.8,163.66,1.12224291]
[1730637093241,2.5937,163.81,163.66,1.12224291]
[1730637093242,3.80940158,163.79,163.66,1.12224291]
[1730637093442,2.5937,163.81,163.66,1.12224291]
[1730637093639,3.80906021,163.78,163.66,1.12224291]
[1730637093840,2.5937,163.81,163.66,1.12224291]
[1730637094041,3.80907662,163.8,163.66,1.12224291]
[1730637094238,3.80907662,163.79,163.66,1.12224291]
[1730637094545,3.80907662,163.78,163.66,1.12224291]
[1730637094731,2.5937,163.81,163.66,1.12224291]
[1730637094927,3.80888485,163.8,163.66,1.12224291]
[1730637095144,3.80888485,163.79,163.67,1.12227433]
[1730637095335,3.80888485,163.78,163.68,1.12227433]
[1730637095535,2.5937,163.81,163.69,2.82]
[1730637095845,3.80885121,163.8,163.7,2.82]
[1730637096038,3.80885121,163.79,163.7,2.82]
[1730637096243,3.80885121,163.78,163.7,2.82]
[1730637096542,3.80885121,163.77,163.7,2.82]
[1730637096736,2.5937,163.81,163.7,2.82]
[1730637096940,6.62822698,163.8,163.7,2.82]
[1730637097146,6.62822698,163.8,163.65,3.8811]
[1730637097147,3.80822698,163.79,163.69,2.82]
[1730637097346,3.80822698,163.78,163.68,2.82]
[1730637097538,3.80822698,163.77,163.68,2.82]
[1730637097743,3.80822698,163.76,163.68,2.82]
[1730637097946,2.82,163.8,163.65,3.8811]
[1730637098244,22.12689539,163.79,163.66,2.82]
[1730637098445,22.12689539,163.78,163.66,2.82]
[1730637098648,3.80689539,163.77,163.66,2.82]
[1730637098954,6.62689539,163.76,163.66,2.82]
[1730637099141,3.80689539,163.75,163.66,2.82]
[1730637099458,4.201,163.76,163.66,2.82]
[1730637099754,3.80510207,163.75,163.66,2.82]
[1730637100058,4.201,163.76,163.66,2.82]
[1730637100238,3.80521059,163.75,163.66,2.82]
[1730637100438,4.201,163.76,163.66,2.82]
[1730637100746,4.201,163.76,163.65,3.8811]
[1730637100747,3.80450821,163.75,163.65,3.8811]
[1730637100945,22.521,163.76,163.64,55.27151302]
[1730637101247,2.6875,163.74,163.63,2.82]
[1730637101448,3.80438437,163.73,163.62,2.82]
[1730637101646,2.6875,163.74,163.62,2.82]
[1730637101647,2.82,163.72,163.62,2.82]
[1730637102440,3.8004873,163.71,163.62,2.82]
[1730637102642,2.82,163.72,163.62,2.82]
[1730637102942,1.2716,163.7,163.62,2.82]
[1730637104242,2.82,163.72,163.62,2.82]
[1730637121964,2.82,163.72,163.59,2.82]
[1730637122367,2.82,163.72,163.56,7.21408819]
[1730637122665,2.82,163.72,163.59,2.82]
[1730637123160,2.82,163.72,163.56,7.21408819]
[1730637123161,2.82,163.72,163.58,2.82]
[1730637123751,18.32,163.7,163.57,2.82]
[1730637124156,1.2744,163.69,163.57,2.82]
[1730637124365,2.82,163.68,163.57,4.1167]
[1730637127567,2.82,163.68,163.57,1.2967]
[1730637127757,2.5342,163.67,163.57,1.2967]
[1730637129159,2.5342,163.67,163.56,8.70538819]
[1730637129356,2.5342,163.67,163.56,1.3835]
[1730637129552,2.5342,163.67,163.54,2.82]
[1730637129756,2.5342,163.67,163.55,3.05733834]
[1730637130154,2.5342,163.67,163.54,2.82]
[1730637130761,2.5342,163.67,163.54,3.00168922]
[1730637130962,2.5342,163.67,163.54,2.82]
[1730637131172,2.5342,163.67,163.54,5.86510776]
[1730637133177,2.82,163.66,163.54,5.86510776]
[1730637137672,2.5342,163.67,163.54,5.86510776]
[1730637137881,1.2744,163.69,163.55,1.12322167]
[1730637138083,4.0944,163.69,163.55,2.24644334]
[1730637138285,2.82,163.69,163.55,1.12322167]
[1730637138764,2.82,163.69,163.54,5.86510776]
[1730637138967,2.82,163.69,163.55,1.12320051]
[1730637139767,2.82,163.69,163.54,5.86510776]
[1730637140065,2.82,163.69,163.55,1.12304579]
[1730637142266,2.82,163.69,163.54,5.86510776]
[1730637142470,2.82,163.69,163.55,1.122974]
[1730637142879,2.82,163.69,163.56,1.12294296]
[1730637143178,2.82,163.69,163.54,5.86510776]
[1730637143179,2.82,163.69,163.57,2.40484296]
[1730637143381,2.82,163.69,163.58,6.46954296]
[1730637143566,2.82,163.69,163.58,5.3466]
[1730637143878,2.82,163.69,163.59,1.12293988]
[1730637144477,2.82,163.69,163.58,5.3466]
[1730637144878,2.82,163.69,163.59,1.12294482]
[1730637146275,2.82,163.69,163.58,5.3466]
[1730637146476,2.82,163.69,163.59,1.12290299]
[1730637147078,2.82,163.72,163.59,1.12290299]
[1730637149476,4.0412,163.73,163.59,1.12290299]
[1730637149477,1.3291,163.73,163.59,1.12290299]
[1730637149678,59.82791389,163.75,163.59,1.12290299]
[1730637150272,59.82791389,163.75,163.58,5.3466]
[1730637150479,59.82791389,163.75,163.59,1.12281833]
[1730637151573,59.82791389,163.75,163.6,1.12281348]
[1730637151774,59.82791389,163.75,163.61,1.12281348]
[1730637152082,59.82791389,163.75,163.62,2.82]
[1730637152283,59.82791389,163.75,163.63,1.3218]
[1730637152585,59.82791389,163.75,163.63,4.35838135]
[1730637152776,59.82791389,163.75,163.64,2.7038]
[1730637157583,59.82791389,163.75,163.65,2.82]
[1730637161688,2.82,163.79,163.65,2.82]
[1730637161880,3.79501153,163.78,163.65,2.82]
[1730637162077,2.82,163.79,163.65,2.82]
[1730637162288,3.79512128,163.78,163.65,2.82]
[1730637162486,2.82,163.79,163.65,2.82]
[1730637162783,3.79605623,163.78,163.65,2.82]
[1730637162994,3.9717,163.82,163.65,2.82]
[1730637163170,6.6168469,163.81,163.66,1.12244221]
[1730637163375,3.7968469,163.8,163.66,1.12244221]
[1730637164176,3.79742619,163.79,163.66,1.12244221]
[1730637164378,2.82,163.81,163.66,1.12244221]
[1730637164991,3.79774364,163.8,163.66,1.12244221]
[1730637165190,3.79774364,163.79,163.66,1.12244221]
[1730637165390,3.79774364,163.8,163.66,1.12244221]
[1730637165591,3.79778665,163.79,163.66,1.12244221]
[1730637165780,2.82,163.81,163.66,1.12244221]
[1730637165982,3.79781236,163.8,163.66,1.12244221]
[1730637166189,3.79781236,163.79,163.66,1.12244221]
[1730637166495,2.82,163.81,163.66,1.12244221]
[1730637166681,3.79773711,163.8,163.66,1.12244221]
[1730637166883,3.79773711,163.79,163.66,1.12244221]
[1730637167082,2.82,163.81,163.66,1.12244221]
[1730637167285,3.79748521,163.8,163.67,1.12241222]
[1730637167493,3.79748521,163.79,163.65,2.82]
[1730637167692,2.82,163.81,163.66,1.12243296]
[1730637167896,3.79729142,163.8,163.66,1.12243296]
[1730637168086,2.82,163.81,163.66,1.12243296]
[1730637168385,3.79732409,163.8,163.66,1.12243296]
[1730637168593,2.82,163.81,163.66,1.12243296]
[1730637168790,3.79688104,163.8,163.66,1.12243296]
[1730637168981,2.82,163.81,163.66,1.12243296]
[1730637169184,3.79705813,163.8,163.66,1.12243296]
[1730637169397,2.82,163.81,163.66,1.12243296]
[1730637169599,3.79655352,163.8,163.66,1.12243296]
[1730637169794,2.82,163.81,163.66,1.12243296]
[1730637169987,3.79656681,163.8,163.66,1.12243296]
[1730637170297,2.82,163.81,163.66,1.12243296]
[1730637170496,3.79583219,163.8,163.66,1.12243296]
[1730637170699,2.82,163.81,163.67,1.12239919]
[1730637170995,2.82,163.81,163.65,2.82]
[1730637170996,2.82,163.81,163.68,1.12239919]
[1730637171306,2.82,163.81,163.69,4.1554]
[1730637171493,2.82,163.81,163.7,2.82]
[1730637175294,3.79258566,163.8,163.7,2.82]
[1730637175501,2.82,163.81,163.7,2.82]
[1730637175698,3.79233242,163.8,163.7,2.82]
[1730637175899,2.82,163.81,163.7,2.82]
[1730637176097,3.79228947,163.8,163.7,2.82]
[1730637176298,2.82,163.81,163.7,2.82]
[1730637176503,3.79189538,163.8,163.7,2.82]
[1730637176703,2.82,163.81,163.7,2.82]
[1730637176911,3.79184934,163.8,163.7,2.82]
[1730637177202,2.82,163.81,163.7,2.82]
[1730637177403,3.79150464,163.8,163.7,2.82]
[1730637177606,2.82,163.81,163.7,2.82]
[1730637177799,3.79153697,163.8,163.7,2.82]
[1730637178107,2.82,163.81,163.7,2.82]
[1730637178609,3.7913252,163.8,163.7,2.82]
[1730637178793,2.82,163.81,163.7,2.82]
[1730637179312,3.79128164,163.8,163.7,2.82]
[1730637179609,2.82,163.81,163.7,2.82]
[1730637179810,3.79100451,163.8,163.64,39.3754916]
[1730637180106,2.82,163.81,163.65,2.82]
[1730637180107,3.79100451,163.79,163.65,2.82]
[1730637180312,2.82,163.81,163.65,2.82]
[1730637180608,3.79104026,163.8,163.65,2.82]
[1730637180810,3.79104026,163.79,163.65,2.82]
[1730637181009,22.11104026,163.8,163.65,2.82]
[1730637181309,22.11104026,163.79,163.65,2.82]
[1730637181509,18.32,163.79,163.65,2.82]
[1730637181711,3.79221874,163.78,163.65,2.82]
[1730637181915,2.82,163.77,163.65,2.82]
[1730637182210,6.61221874,163.77,163.65,2.82]
[1730637182410,7.76961874,163.76,163.65,2.82]
[1730637182610,3.9774,163.76,163.65,2.82]
[1730637183407,3.9774,163.76,163.64,36.7600916]
[1730637183613,3.9774,163.76,163.65,2.82]
[1730637186018,6.7974,163.76,163.65,2.82]
[1730637188813,6.7974,163.76,163.66,2.82]
[1730637195017,6.7974,163.76,163.64,35.4033916]
[1730637195233,3.79380431,163.75,163.64,38.2233916]
[1730637195521,6.7974,163.76,163.64,38.2233916]
[1730637196122,3.79396105,163.75,163.64,38.2233916]
[1730637196316,6.7974,163.76,163.64,38.2233916]
[1730637196720,3.79420063,163.75,163.64,35.4033916]
[1730637196912,3.7941715,163.74,163.64,35.4033916]
[1730637197114,25.1174,163.76,163.64,35.4033916]
[1730637197316,3.79462016,163.75,163.64,35.4033916]
[1730637197517,3.79462016,163.74,163.64,35.4033916]
[1730637197716,25.1174,163.76,163.64,35.4033916]
[1730637197922,3.79492695,163.75,163.64,35.4033916]
[1730637198118,3.79492695,163.74,163.64,35.4033916]
[1730637198325,25.1174,163.76,163.64,35.4033916]
[1730637198541,3.79575267,163.75,163.64,35.4033916]
[1730637198733,25.1174,163.76,163.64,35.4033916]
[1730637198921,3.79739039,163.75,163.64,35.4033916]
[1730637199233,7.59478162,163.74,163.64,35.4033916]
[1730637199414,3.79739123,163.74,163.64,35.4033916]
[1730637202527,3.80488135,163.73,163.64,35.4033916]
[1730637203214,3.79739123,163.74,163.64,35.4033916]
[1730637203421,3.79739123,163.74,163.64,36.7637916]
[1730637207125,6.7974,163.76,163.64,36.7637916]
[1730637207518,3.81132123,163.75,163.64,36.7637916]
[1730637207828,3.81132123,163.74,163.64,36.7637916]
[1730637208131,3.81132123,163.73,163.64,36.7637916]
[1730637208325,6.7974,163.76,163.64,38.1062916]
[1730637208534,3.81328741,163.75,163.64,38.1062916]
[1730637208726,3.81328741,163.74,163.64,38.1062916]
[1730637209024,3.81328741,163.73,163.64,38.1062916]
[1730637209211,6.7974,163.76,163.64,38.1062916]
[1730637209418,3.81402317,163.75,163.64,38.1062916]
[1730637209620,3.81402317,163.74,163.64,38.1062916]
[1730637209930,3.81402317,163.73,163.64,38.1062916]
[1730637210230,6.7974,163.76,163.65,1.3589]
[1730637210532,3.81439511,163.75,163.65,1.3589]
[1730637210828,3.81439511,163.74,163.65,1.3589]
[1730637211016,1.2663,163.76,163.65,1.3589]
[1730637211223,3.81463521,163.75,163.65,1.3589]
[1730637211418,3.81463521,163.74,163.65,1.3589]
[1730637211627,2.82,163.77,163.65,1.3589]
[1730637211823,3.81472802,163.76,163.65,1.3589]
[1730637212023,3.81472802,163.75,163.65,1.3589]
[1730637212230,2.82,163.77,163.65,1.3589]
[1730637212231,3.81472802,163.74,163.65,1.3589]
[1730637212530,2.82,163.79,163.65,1.3589]
[1730637212719,3.81557708,163.78,163.65,1.3589]
[1730637212920,3.81557708,163.77,163.66,1.12256781]
[1730637213115,3.81557708,163.76,163.67,2.82]
[1730637213321,62.61836497,163.83,163.67,2.82]
[1730637213521,3.81600739,163.82,163.67,2.82]
[1730637213725,3.81600739,163.81,163.67,2.82]
[1730637213927,62.61836497,163.83,163.67,2.82]
[1730637213928,3.81600739,163.8,163.67,2.82]
[1730637214224,3.8159738,163.79,163.67,2.82]
[1730637214433,3.8159738,163.78,163.67,2.82]
[1730637214729,3.8159738,163.77,163.67,2.82]
[1730637214929,62.61836497,163.83,163.68,1.12237062]
[1730637215122,3.81594667,163.82,163.68,1.12237062]
[1730637215330,3.81594667,163.81,163.68,1.12237062]
[1730637215925,3.81602177,163.8,163.68,1.12237062]
[1730637216130,59.79836497,163.83,163.68,1.12237062]
[1730637216344,3.81605256,163.82,163.68,1.12237062]
[1730637216536,3.81605256,163.81,163.68,1.12237062]
[1730637216736,59.79836497,163.83,163.68,1.12237062]
[1730637217036,3.81540957,163.82,163.68,1.12237062]
[1730637217334,3.81540957,163.81,163.68,1.12237062]
[1730637217630,59.79836497,163.83,163.68,1.12237062]
[1730637217828,3.81431457,163.82,163.68,1.12237062]
[1730637218024,3.81431457,163.81,163.69,1.1221288]
[1730637218232,59.79836497,163.83,163.7,2.7418]
[1730637218425,3.81366053,163.82,163.71,3.9421288]
[1730637218634,59.79836497,163.83,163.72,1.1221288]
[1730637219327,59.79836497,163.83,163.72,4.16596248]
[1730637219527,59.79836497,163.83,163.73,1.1221288]
[1730637219929,59.79836497,163.83,163.73,3.0309438]
[1730637220149,3.9656,163.88,163.71,4.0971]
[1730637220323,3.81301361,163.87,163.74,1.121919]
[1730637220525,3.81301361,163.86,163.75,2.82]
[1730637220722,5.4516,163.88,163.76,2.541]
[1730637220932,3.81167628,163.87,163.76,5.53408372]
[1730637221136,3.81167628,163.86,163.77,1.3252]
[1730637221346,62.59420838,163.9,163.77,4.4520153]
[1730637221523,3.810266,163.89,163.77,1.3252]
[1730637221723,3.810266,163.88,163.77,4.37079932]
[1730637222038,3.810266,163.87,163.77,4.37079932]
[1730637222234,59.77420838,163.9,163.77,4.37079932]
[1730637222441,3.80881042,163.89,163.77,1.3252]
[1730637222642,3.80881042,163.88,163.77,1.3252]
[1730637222940,3.80881042,163.87,163.77,4.40621681]
[1730637223132,59.77420838,163.9,163.77,1.3252]
[1730637223328,3.80830506,163.89,163.77,1.3252]
[1730637223534,3.80830506,163.88,163.77,1.3252]
[1730637223729,3.80830506,163.88,163.77,4.36681769]
[1730637224037,3.80830506,163.88,163.77,1.3252]
[1730637224440,3.80830506,163.88,163.77,4.31798088]
[1730637224829,3.80710797,163.87,163.77,4.31798088]
[1730637225029,1.3542,163.89,163.77,4.31798088]
[1730637226042,3.80708131,163.88,163.77,4.31798088]
[1730637226241,3.80708131,163.87,163.77,4.31798088]
[1730637226444,1.3542,163.89,163.77,4.31798088]
[1730637226642,3.80418356,163.88,163.77,4.31798088]
[1730637226846,3.80418356,163.87,163.77,4.31798088]
[1730637227143,1.3542,163.89,163.77,4.31798088]
[1730637227343,3.80376266,163.88,163.77,4.31798088]
[1730637227536,3.80376266,163.87,163.77,4.31798088]
[1730637227736,1.3542,163.89,163.77,4.31798088]
[1730637227933,3.80318959,163.88,163.78,2.82]
[1730637228240,3.80318959,163.87,163.78,2.82]
[1730637228538,1.3542,163.89,163.78,2.82]
[1730637228737,3.80261423,163.88,163.78,2.82]
[1730637228942,3.80261423,163.87,163.78,2.82]
[1730637229146,1.3542,163.89,163.78,2.82]
[1730637229343,3.80239767,163.88,163.78,2.82]
[1730637229549,3.80239767,163.87,163.78,2.82]
[1730637229842,2.82,163.88,163.78,2.82]
[1730637230037,3.80173606,163.87,163.78,2.82]
[1730637230230,2.82,163.88,163.78,2.82]
[1730637230433,3.80105321,163.87,163.78,2.82]
[1730637230629,2.82,163.88,163.78,2.82]
[1730637230833,3.80102756,163.87,163.78,2.82]
[1730637231049,2.82,163.88,163.78,2.82]
[1730637231237,3.80173805,163.87,163.78,2.82]
[1730637231438,2.82,163.88,163.78,2.82]
[1730637233043,3.80059075,163.87,163.78,2.82]
[1730637233240,2.82,163.88,163.78,2.82]
[1730637234244,1.3542,163.89,163.78,2.82]
[1730637242048,1.3542,163.89,163.77,4.31798088]
[1730637242243,1.3542,163.89,163.79,2.8]
[1730637244549,1.3542,163.89,163.79,2.82]
[1730637260565,1.3542,163.89,163.76,3.12643358]
[1730637260752,22.11729176,163.88,163.75,2.8]
[1730637260954,3.79729176,163.87,163.76,3.07789312]
[1730637261154,2.8,163.86,163.74,2.8]
[1730637261655,1.3071,163.85,163.74,5.79289488]
[1730637261850,1.3071,163.85,163.74,2.8]
[1730637262358,1.3071,163.85,163.74,5.85762593]